[Event "Live Chess"]
[Site "Chess.com"]
[Date "2023.05.21"]
[Round "-"]
[White "LutherSullivan"]
[Black "Singapourfeuj"]
[Result "1/2-1/2"]
[WhiteElo "2178"]
[BlackElo "2194"]
[TimeControl "300"]
[EndTime "22:15:17 PDT"]
[Termination "Game drawn by repetition"]

1. e4 {[%clk 0:04:58.3]} 1... c5 {[%clk 0:04:58.4]} 2. Nf3 {[%clk 0:04:57.9]}
2... d6 {[%clk 0:04:57.4]} 3. d4 {[%clk 0:04:57.5]} 3... cxd4 {[%clk 0:04:56.7]}
4. Nxd4 {[%clk 0:04:57.2]} 4... Nf6 {[%clk 0:04:56.1]} 5. Nc3 {[%clk 0:04:56.5]}
5... a6 {[%clk 0:04:55.4]} 6. Be3 {[%clk 0:04:55.9]} 6... e5 {[%clk 0:04:54.1]}
7. Nb3 {[%clk 0:04:53.8]} 7... Be7 {[%clk 0:04:53]} 8. f3 {[%clk 0:04:52.5]}
8... Be6 {[%clk 0:04:51.7]} 9. Qd2 {[%clk 0:04:51.7]} 9... h5 {[%clk 0:04:50.4]}
10. O-O-O {[%clk 0:04:46.2]} 10... Nbd7 {[%clk 0:04:49.3]} 11. Nd5 {[%clk
0:04:42.4]} 11... Bxd5 {[%clk 0:04:45.6]} 12. exd5 {[%clk 0:04:41.2]} 12... Nb6
{[%clk 0:04:40.3]} 13. Bg5 {[%clk 0:04:29.2]} 13... Nfxd5 {[%clk 0:04:27.4]} 14.
Bxe7 {[%clk 0:04:22.2]} 14... Qxe7 {[%clk 0:04:26.6]} 15. c4 {[%clk 0:04:15.7]}
15... Rc8 {[%clk 0:04:24.3]} 16. Kb1 {[%clk 0:04:14.2]} 16... Nf6 {[%clk
0:04:19.2]} 17. Qxd6 {[%clk 0:04:07.2]} 17... Qxd6 {[%clk 0:04:18]} 18. Rxd6
{[%clk 0:04:07]} 18... Nxc4 {[%clk 0:04:16.2]} 19. Bxc4 {[%clk 0:04:00.2]} 19...
Rxc4 {[%clk 0:04:14.9]} 20. Rb6 {[%clk 0:03:58.3]} 20... Rc7 {[%clk 0:04:12.2]}
21. Rc1 {[%clk 0:03:55.9]} 21... Rxc1+ {[%clk 0:04:08.3]} 22. Kxc1 {[%clk
0:03:55.3]} 22... O-O {[%clk 0:04:07.2]} 23. Rxb7 {[%clk 0:03:53.9]} 23... e4
{[%clk 0:04:06.1]} 24. Kd2 {[%clk 0:03:49.5]} 24... exf3 {[%clk 0:04:03.8]} 25.
gxf3 {[%clk 0:03:48.5]} 25... Rd8+ {[%clk 0:04:02.5]} 26. Ke2 {[%clk 0:03:45.6]}
26... h4 {[%clk 0:03:59]} 27. Ra7 {[%clk 0:03:43.2]} 27... Rd6 {[%clk
0:03:57.6]} 28. Nc5 {[%clk 0:03:40.7]} 28... Rc6 {[%clk 0:03:49.1]} 29. b4
{[%clk 0:03:39.3]} 29... Nd5 {[%clk 0:03:46]} 30. Rxa6 {[%clk 0:03:19]} 30...
Nxb4 {[%clk 0:03:41.6]} 31. Rxc6 {[%clk 0:03:17]} 31... Nxc6 {[%clk 0:03:40.7]}
32. Kd3 {[%clk 0:03:15.6]} 32... f5 {[%clk 0:03:38.2]} 33. Kc4 {[%clk
0:03:13.3]} 33... g5 {[%clk 0:03:36.4]} 34. a4 {[%clk 0:03:07.7]} 34... g4
{[%clk 0:03:35]} 35. fxg4 {[%clk 0:03:05]} 35... fxg4 {[%clk 0:03:34]} 36. Ne4
{[%clk 0:03:04.3]} 36... Kf7 {[%clk 0:03:26]} 37. Kb5 {[%clk 0:02:57.9]} 37...
Nb8 {[%clk 0:03:14.6]} 38. a5 {[%clk 0:02:56]} 38... Ke6 {[%clk 0:03:10.8]} 39.
Kb6 {[%clk 0:02:52.2]} 39... Kf5 {[%clk 0:03:07.6]} 40. Nf2 {[%clk 0:02:45.7]}
40... g3 {[%clk 0:03:04.9]} 41. hxg3 {[%clk 0:02:44.7]} 41... hxg3 {[%clk
0:03:04]} 42. Nh3 {[%clk 0:02:43.8]} 42... Kg4 {[%clk 0:03:00.5]} 43. Ng1 {[%clk
0:02:42.8]} 43... g2 {[%clk 0:02:59.2]} 44. Kb7 {[%clk 0:02:41.4]} 44... Nd7
{[%clk 0:02:57.9]} 45. Kc7 {[%clk 0:02:39.3]} 45... Nc5 {[%clk 0:02:56.2]} 46.
Kb6 {[%clk 0:02:38.2]} 46... Nd7+ {[%clk 0:02:54.7]} 47. Kc7 {[%clk 0:02:32]}
47... Nc5 {[%clk 0:02:53.6]} 48. Kc6 {[%clk 0:02:29.8]} 48... Na6 {[%clk
0:02:51.7]} 49. Kb6 {[%clk 0:02:29]} 49... Nb8 {[%clk 0:02:46.8]} 50. Kc5 {[%clk
0:02:27.7]} 50... Kg3 {[%clk 0:02:44.9]} 51. Kb6 {[%clk 0:02:15.5]} 51... Kf2
{[%clk 0:02:41.8]} 52. Nh3+ {[%clk 0:02:14]} 52... Kg3 {[%clk 0:02:40.8]} 53.
Ng1 {[%clk 0:02:13.6]} 53... Kf2 {[%clk 0:02:39.8]} 54. Nh3+ {[%clk 0:02:13.2]}
54... Kg3 {[%clk 0:02:38.4]} 55. Ng1 {[%clk 0:02:12.8]} 1/2-1/2

[Event "Live Chess"]
[Site "Chess.com"]
[Date "2023.05.21"]
[Round "-"]
[White "RockTroll"]
[Black "chessfiction"]
[Result "1-0"]
[WhiteElo "2250"]
[BlackElo "2342"]
[TimeControl "300"]
[EndTime "22:16:25 PDT"]
[Termination "RockTroll won by resignation"]

1. Nf3 {[%clk 0:04:57.1]} 1... e5 {[%clk 0:04:58.8]} 2. Nxe5 {[%clk 0:04:55.3]}
2... Nc6 {[%clk 0:04:58.3]} 3. Nf3 {[%clk 0:04:48.9]} 3... g5 {[%clk 0:04:55]}
4. d4 {[%clk 0:04:33.4]} 4... g4 {[%clk 0:04:53.1]} 5. Ng1 {[%clk 0:04:30.9]}
5... d5 {[%clk 0:04:51.1]} 6. Bf4 {[%clk 0:04:27.1]} 6... Qf6 {[%clk 0:04:47]}
7. e3 {[%clk 0:04:25.6]} 7... Nge7 {[%clk 0:04:44.4]} 8. c4 {[%clk 0:04:22.3]}
8... Be6 {[%clk 0:04:42.1]} 9. cxd5 {[%clk 0:04:19.4]} 9... Nxd5 {[%clk
0:04:41.1]} 10. Bg3 {[%clk 0:04:17.2]} 10... Bb4+ {[%clk 0:04:38.2]} 11. Nd2
{[%clk 0:04:16.4]} 11... O-O-O {[%clk 0:04:34.8]} 12. a3 {[%clk 0:04:14.2]}
12... Ba5 {[%clk 0:04:33.4]} 13. b4 {[%clk 0:04:08.3]} 13... Bb6 {[%clk
0:04:32.4]} 14. Rc1 {[%clk 0:03:49.8]} 14... Rhe8 {[%clk 0:04:25]} 15. Bb5
{[%clk 0:03:42.9]} 15... Bd7 {[%clk 0:04:17.1]} 16. Ne2 {[%clk 0:03:32.5]} 16...
Nxd4 {[%clk 0:04:02.3]} 17. Bxd7+ {[%clk 0:03:25.9]} 17... Rxd7 {[%clk
0:04:02.2]} 18. exd4 {[%clk 0:03:22.1]} 18... Rde7 {[%clk 0:04:01.5]} 19. O-O
{[%clk 0:03:10.3]} 19... Rxe2 {[%clk 0:03:57.5]} 20. Nc4 {[%clk 0:03:09.4]}
20... R8e5 {[%clk 0:03:37.2]} 21. dxe5 {[%clk 0:03:02.4]} 1-0

[Event "Live Chess"]
[Site "Chess.com"]
[Date "2023.05.21"]
[Round "-"]
[White "raminguy"]
[Black "Biranidun"]
[Result "0-1"]
[WhiteElo "1968"]
[BlackElo "2545"]
[TimeControl "300"]
[EndTime "22:16:30 PDT"]
[Termination "Biranidun won by resignation"]

1. d4 {[%clk 0:04:58.1]} 1... Nf6 {[%clk 0:04:59.1]} 2. Nc3 {[%clk 0:04:55.9]}
2... d5 {[%clk 0:04:58.1]} 3. Bf4 {[%clk 0:04:53.3]} 3... g6 {[%clk 0:04:56.9]}
4. e3 {[%clk 0:04:51]} 4... Bg7 {[%clk 0:04:56.5]} 5. h4 {[%clk 0:04:50.3]} 5...
c6 {[%clk 0:04:55.6]} 6. Be2 {[%clk 0:04:48.2]} 6... h5 {[%clk 0:04:54.8]} 7.
Nf3 {[%clk 0:04:46.5]} 7... Bg4 {[%clk 0:04:54.5]} 8. Ne5 {[%clk 0:04:45.4]}
8... Bxe2 {[%clk 0:04:54.2]} 9. Qxe2 {[%clk 0:04:45.1]} 9... Nbd7 {[%clk
0:04:54.1]} 10. O-O-O {[%clk 0:04:43.9]} 10... Rc8 {[%clk 0:04:53.2]} 11. Nd3
{[%clk 0:04:41.7]} 11... Qa5 {[%clk 0:04:50.6]} 12. Kb1 {[%clk 0:04:36]} 12...
b5 {[%clk 0:04:49.8]} 13. Qd2 {[%clk 0:04:33.4]} 13... b4 {[%clk 0:04:28.8]} 14.
Ne2 {[%clk 0:04:30.9]} 14... Ne4 {[%clk 0:04:25.7]} 15. Qe1 {[%clk 0:04:17.5]}
15... c5 {[%clk 0:04:22.9]} 16. dxc5 {[%clk 0:04:15.4]} 16... Ndxc5 {[%clk
0:04:11.7]} 17. Nxc5 {[%clk 0:03:56.7]} 17... Qxc5 {[%clk 0:04:10]} 18. Rc1
{[%clk 0:03:47.9]} 18... O-O {[%clk 0:03:45]} 19. f3 {[%clk 0:03:41.3]} 19...
Nd6 {[%clk 0:03:34.9]} 20. Bxd6 {[%clk 0:03:36.4]} 20... Qxd6 {[%clk 0:03:30]}
21. Nd4 {[%clk 0:03:30.3]} 21... Rc4 {[%clk 0:03:27.2]} 22. Nb3 {[%clk
0:03:26.1]} 22... Qe5 {[%clk 0:03:24.5]} 23. c3 {[%clk 0:02:46.4]} 23... bxc3
{[%clk 0:03:23.1]} 24. Rxc3 {[%clk 0:02:44.7]} 24... Rxc3 {[%clk 0:03:22.3]} 25.
Qxc3 {[%clk 0:02:42.3]} 25... Qxc3 {[%clk 0:03:19.5]} 26. bxc3 {[%clk
0:02:41.4]} 26... Rc8 {[%clk 0:03:14.5]} 27. Rc1 {[%clk 0:02:37.1]} 27... Rxc3
{[%clk 0:03:12.4]} 28. Rxc3 {[%clk 0:02:35.6]} 28... Bxc3 {[%clk 0:03:12.3]} 29.
Kc2 {[%clk 0:02:33.7]} 29... Be1 {[%clk 0:03:11.1]} 30. Nd4 {[%clk 0:02:27.3]}
30... e6 {[%clk 0:02:59.5]} 31. Nc6 {[%clk 0:02:22.6]} 31... a6 {[%clk
0:02:57.1]} 32. Nb8 {[%clk 0:02:21.2]} 32... a5 {[%clk 0:02:56.4]} 33. Nc6
{[%clk 0:02:20.5]} 33... a4 {[%clk 0:02:46.4]} 34. a3 {[%clk 0:02:10.8]} 34...
Bxh4 {[%clk 0:02:37.3]} 35. Nb4 {[%clk 0:01:56.5]} 35... Be7 {[%clk 0:02:35.1]}
36. Kc3 {[%clk 0:01:50.8]} 36... Bc5 {[%clk 0:02:27.9]} 37. Nc2 {[%clk
0:01:41.5]} 37... Kf8 {[%clk 0:02:20.9]} 38. Kd3 {[%clk 0:01:35.9]} 38... Ke7
{[%clk 0:02:18.4]} 39. e4 {[%clk 0:01:34.8]} 39... Kd6 {[%clk 0:02:16.6]} 40.
exd5 {[%clk 0:01:27.4]} 40... Kxd5 {[%clk 0:02:16.5]} 0-1

[Event "Live Chess"]
[Site "Chess.com"]
[Date "2023.05.21"]
[Round "-"]
[White "mirandaasilva"]
[Black "Nazarenko_vital"]
[Result "1/2-1/2"]
[WhiteElo "1682"]
[BlackElo "1623"]
[TimeControl "300"]
[EndTime "22:16:48 PDT"]
[Termination "Game drawn by agreement"]

1. Nf3 {[%clk 0:04:55.2]} 1... Nf6 {[%clk 0:04:58.6]} 2. c4 {[%clk 0:04:52.8]}
2... d5 {[%clk 0:04:56.7]} 3. cxd5 {[%clk 0:04:52.7]} 3... Qxd5 {[%clk
0:04:55.5]} 4. Nc3 {[%clk 0:04:51.2]} 4... Qa5 {[%clk 0:04:54.2]} 5. g3 {[%clk
0:04:51.1]} 5... Bf5 {[%clk 0:04:51.3]} 6. Bg2 {[%clk 0:04:51]} 6... c6 {[%clk
0:04:49.7]} 7. d3 {[%clk 0:04:49.5]} 7... e6 {[%clk 0:04:47.3]} 8. Bd2 {[%clk
0:04:48.3]} 8... Qc7 {[%clk 0:04:44.8]} 9. O-O {[%clk 0:04:45.9]} 9... Nbd7
{[%clk 0:04:40.6]} 10. Rc1 {[%clk 0:04:43.7]} 10... a6 {[%clk 0:04:35.4]} 11.
Nd4 {[%clk 0:04:41.7]} 11... Bg6 {[%clk 0:04:30.7]} 12. Na4 {[%clk 0:04:29.8]}
12... h5 {[%clk 0:04:17]} 13. Qb3 {[%clk 0:03:42.1]} 13... Bd6 {[%clk
0:03:48.2]} 14. Nxc6 {[%clk 0:03:35.1]} 14... bxc6 {[%clk 0:02:28.7]} 15. Rxc6
{[%clk 0:03:32.1]} 15... Qd8 {[%clk 0:02:15.5]} 16. Rxd6 {[%clk 0:03:26.7]}
16... O-O {[%clk 0:02:01]} 17. Nb6 {[%clk 0:02:59.2]} 17... Rb8 {[%clk
0:01:47.9]} 18. Ba5 {[%clk 0:02:57.5]} 18... Qc7 {[%clk 0:01:44.6]} 19. Nxd7
{[%clk 0:02:31.4]} 19... Qxd6 {[%clk 0:01:41.3]} 20. Nxb8 {[%clk 0:02:28.4]}
20... Rxb8 {[%clk 0:01:39.9]} 21. Qc4 {[%clk 0:02:09.8]} 21... Rxb2 {[%clk
0:01:31.5]} 22. Bc3 {[%clk 0:02:01.3]} 22... Rxe2 {[%clk 0:01:27.2]} 23. Bxf6
{[%clk 0:01:57.9]} 23... gxf6 {[%clk 0:01:24]} 24. Be4 {[%clk 0:01:35.6]} 24...
Kg7 {[%clk 0:01:19.4]} 25. Bxg6 {[%clk 0:01:33.1]} 25... Kxg6 {[%clk 0:01:18.3]}
26. h4 {[%clk 0:01:21.7]} 26... Rd2 {[%clk 0:01:13.9]} 27. Qe4+ {[%clk
0:01:12.5]} 27... Kg7 {[%clk 0:01:12.6]} 28. Qf3 {[%clk 0:01:07.5]} 28... Qc5
{[%clk 0:00:56.3]} 1/2-1/2

[Event "Live Chess"]
[Site "Chess.com"]
[Date "2023.05.21"]
[Round "-"]
[White "LutherSullivan"]
[Black "Conradical12"]
[Result "1-0"]
[WhiteElo "2179"]
[BlackElo "1629"]
[TimeControl "300"]
[EndTime "22:17:12 PDT"]
[Termination "LutherSullivan won by resignation"]

1. e4 {[%clk 0:04:55.8]} 1... e5 {[%clk 0:04:58.4]} 2. Nc3 {[%clk 0:04:54.5]}
2... Nc6 {[%clk 0:04:57.5]} 3. Bc4 {[%clk 0:04:53.6]} 3... Nf6 {[%clk
0:04:57.1]} 4. d3 {[%clk 0:04:52.9]} 4... Bc5 {[%clk 0:04:55.8]} 5. Nf3 {[%clk
0:04:51.6]} 5... d6 {[%clk 0:04:55]} 6. Ne2 {[%clk 0:04:49.6]} 6... Ng4 {[%clk
0:04:54.2]} 7. O-O {[%clk 0:04:48.1]} 7... f5 {[%clk 0:04:51.3]} 8. exf5 {[%clk
0:04:47]} 8... Bxf5 {[%clk 0:04:49.5]} 9. Ng3 {[%clk 0:04:46.4]} 9... d5 {[%clk
0:04:36.6]} 10. Bb5 {[%clk 0:04:44.2]} 10... Bd7 {[%clk 0:04:34.5]} 11. d4
{[%clk 0:04:30]} 11... e4 {[%clk 0:04:26.5]} 12. dxc5 {[%clk 0:04:26.7]} 12...
exf3 {[%clk 0:04:24.5]} 13. Qxf3 {[%clk 0:04:24]} 13... Qh4 {[%clk 0:04:22.1]}
14. Re1+ {[%clk 0:04:20]} 14... Nce5 {[%clk 0:04:17.1]} 15. Bxd7+ {[%clk
0:04:15.2]} 15... Kxd7 {[%clk 0:04:13.8]} 16. Qf5+ {[%clk 0:04:11.8]} 16... Kd8
{[%clk 0:04:10.4]} 17. Bg5+ {[%clk 0:04:09.2]} 17... Qxg5 {[%clk 0:04:08]} 18.
Qxg5+ {[%clk 0:04:08.7]} 1-0

[Event "Live Chess"]
[Site "Chess.com"]
[Date "2023.05.21"]
[Round "-"]
[White "KeithArkell"]
[Black "matt1979"]
[Result "1-0"]
[WhiteElo "2556"]
[BlackElo "1503"]
[TimeControl "300"]
[EndTime "22:18:21 PDT"]
[Termination "KeithArkell won by resignation"]

1. d4 {[%clk 0:04:56.1]} 1... e6 {[%clk 0:04:58.1]} 2. Nf3 {[%clk 0:04:55.3]}
2... f5 {[%clk 0:04:56.8]} 3. g3 {[%clk 0:04:52.9]} 3... Nf6 {[%clk 0:04:55.3]}
4. Bg2 {[%clk 0:04:52.1]} 4... Be7 {[%clk 0:04:53.7]} 5. O-O {[%clk 0:04:51.3]}
5... O-O {[%clk 0:04:52.7]} 6. b3 {[%clk 0:04:50.3]} 6... d6 {[%clk 0:04:51.5]}
7. Bb2 {[%clk 0:04:49.6]} 7... Qe8 {[%clk 0:04:46.1]} 8. Nbd2 {[%clk 0:04:46.9]}
8... a5 {[%clk 0:04:41.5]} 9. Re1 {[%clk 0:04:46]} 9... Nbd7 {[%clk 0:04:35.7]}
10. e4 {[%clk 0:04:44.6]} 10... fxe4 {[%clk 0:04:29.8]} 11. Nxe4 {[%clk
0:04:42.9]} 11... Nxe4 {[%clk 0:04:28.2]} 12. Rxe4 {[%clk 0:04:42]} 12... Qg6
{[%clk 0:04:21.4]} 13. Re1 {[%clk 0:04:32.7]} 13... Kh8 {[%clk 0:04:15.9]} 14.
Qe2 {[%clk 0:04:09.6]} 14... Nf6 {[%clk 0:04:11.8]} 15. Rad1 {[%clk 0:04:05.1]}
15... Bd7 {[%clk 0:04:04.9]} 16. a4 {[%clk 0:04:03.9]} 16... Nd5 {[%clk
0:03:48.5]} 17. c4 {[%clk 0:03:56.3]} 17... Nb6 {[%clk 0:03:44.7]} 18. Qe4
{[%clk 0:03:46.6]} 18... Qxe4 {[%clk 0:03:38.9]} 19. Rxe4 {[%clk 0:03:45.7]}
19... Rf6 {[%clk 0:03:19]} 20. c5 {[%clk 0:03:34.3]} 20... Nd5 {[%clk
0:03:12.2]} 21. cxd6 {[%clk 0:03:30.7]} 21... cxd6 {[%clk 0:03:10.4]} 22. Ng5
{[%clk 0:03:25.4]} 22... h6 {[%clk 0:03:04.5]} 23. Nh3 {[%clk 0:02:46.7]} 23...
Raf8 {[%clk 0:02:54.6]} 24. f4 {[%clk 0:02:43]} 24... Re8 {[%clk 0:02:20.8]} 25.
Re2 {[%clk 0:02:41.1]} 25... Rg6 {[%clk 0:02:03.2]} 26. Rde1 {[%clk 0:02:36.6]}
26... Bd8 {[%clk 0:01:57.3]} 27. Bxd5 {[%clk 0:02:35.3]} 27... exd5 {[%clk
0:01:51.1]} 28. Rxe8+ {[%clk 0:02:33.9]} 1-0

[Event "Live Chess"]
[Site "Chess.com"]
[Date "2023.05.21"]
[Round "-"]
[White "Doge_Dandolo"]
[Black "CheckThis4"]
[Result "0-1"]
[WhiteElo "1897"]
[BlackElo "2492"]
[TimeControl "300"]
[EndTime "22:19:01 PDT"]
[Termination "CheckThis4 won by resignation"]

1. Nf3 {[%clk 0:04:57.2]} 1... d5 {[%clk 0:04:56.5]} 2. c4 {[%clk 0:04:54.9]}
2... d4 {[%clk 0:04:51]} 3. b4 {[%clk 0:04:50.1]} 3... g6 {[%clk 0:04:47.6]} 4.
g3 {[%clk 0:04:42.7]} 4... Bg7 {[%clk 0:04:46.3]} 5. d3 {[%clk 0:04:40.9]} 5...
e5 {[%clk 0:04:45.7]} 6. Bg2 {[%clk 0:04:35.1]} 6... a5 {[%clk 0:04:43.6]} 7.
Qa4+ {[%clk 0:04:32.8]} 7... Nd7 {[%clk 0:04:35.6]} 8. O-O {[%clk 0:04:28.8]}
8... Ne7 {[%clk 0:04:32.7]} 9. Nbd2 {[%clk 0:04:22]} 9... O-O {[%clk 0:04:31.4]}
10. Ng5 {[%clk 0:04:02.1]} 10... Nb6 {[%clk 0:04:27.6]} 11. Qb3 {[%clk
0:03:57.9]} 11... axb4 {[%clk 0:04:24.5]} 12. Nge4 {[%clk 0:03:45.5]} 12... Nc6
{[%clk 0:04:18.3]} 13. f4 {[%clk 0:03:37.6]} 13... f5 {[%clk 0:04:12.5]} 14. Ng5
{[%clk 0:03:35.7]} 14... h6 {[%clk 0:04:10.1]} 15. c5+ {[%clk 0:03:34.1]} 15...
Kh8 {[%clk 0:03:57.6]} 16. Nf7+ {[%clk 0:03:31.9]} 16... Rxf7 {[%clk 0:03:56.3]}
17. Qxf7 {[%clk 0:03:30]} 17... Na4 {[%clk 0:03:54.3]} 18. Qxg6 {[%clk
0:03:19.4]} 18... Nc3 {[%clk 0:03:40.3]} 19. fxe5 {[%clk 0:03:17.1]} 19... Nxe2+
{[%clk 0:03:20.6]} 20. Kh1 {[%clk 0:03:14.5]} 20... Nxe5 {[%clk 0:03:19.6]} 21.
Qh5 {[%clk 0:03:03.2]} 21... Ng4 {[%clk 0:03:15.2]} 22. Nf3 {[%clk 0:02:43.7]}
22... Be6 {[%clk 0:02:54.2]} 23. h3 {[%clk 0:02:39.7]} 23... Nxg3+ {[%clk
0:02:48.6]} 24. Kg1 {[%clk 0:02:35.9]} 24... Nxh5 {[%clk 0:02:47.1]} 25. hxg4
{[%clk 0:02:35.3]} 25... fxg4 {[%clk 0:02:45.8]} 26. Nd2 {[%clk 0:02:29.7]}
26... Ng3 {[%clk 0:02:41]} 27. Re1 {[%clk 0:02:23]} 27... Bd5 {[%clk 0:02:34.5]}
28. Ne4 {[%clk 0:02:20.5]} 28... Bxe4 {[%clk 0:02:32.7]} 29. dxe4 {[%clk
0:02:19.1]} 29... d3 {[%clk 0:02:31.4]} 30. Bf4 {[%clk 0:02:17.9]} 30... Bxa1
{[%clk 0:02:28.2]} 0-1

[Event "Live Chess"]
[Site "Chess.com"]
[Date "2023.05.21"]
[Round "-"]
[White "MaximKhimchenko"]
[Black "Singapourfeuj"]
[Result "0-1"]
[WhiteElo "1359"]
[BlackElo "2194"]
[TimeControl "300"]
[EndTime "22:19:24 PDT"]
[Termination "Singapourfeuj won by resignation"]

1. e4 {[%clk 0:04:52.9]} 1... c5 {[%clk 0:04:58.2]} 2. Nf3 {[%clk 0:04:49.8]}
2... d6 {[%clk 0:04:57.2]} 3. d4 {[%clk 0:04:47.4]} 3... cxd4 {[%clk 0:04:56.1]}
4. Nxd4 {[%clk 0:04:47]} 4... Nf6 {[%clk 0:04:55.3]} 5. Nc3 {[%clk 0:04:46.5]}
5... a6 {[%clk 0:04:53.8]} 6. Bg5 {[%clk 0:04:45.2]} 6... Nbd7 {[%clk
0:04:52.4]} 7. Bc4 {[%clk 0:04:43.3]} 7... Qc7 {[%clk 0:04:49.8]} 8. Bb3 {[%clk
0:04:38.1]} 8... h6 {[%clk 0:04:47.5]} 9. Bxf6 {[%clk 0:04:35.8]} 9... Nxf6
{[%clk 0:04:45.9]} 10. O-O {[%clk 0:04:34.8]} 10... e6 {[%clk 0:04:43]} 11. f4
{[%clk 0:04:33.6]} 11... Bd7 {[%clk 0:04:42]} 12. f5 {[%clk 0:04:32.8]} 12... e5
{[%clk 0:04:39.7]} 13. Nf3 {[%clk 0:04:29.3]} 13... Bc6 {[%clk 0:04:38.7]} 14.
Nd5 {[%clk 0:04:28.5]} 14... Bxd5 {[%clk 0:04:37.6]} 15. Bxd5 {[%clk 0:04:27]}
15... Nxd5 {[%clk 0:04:35.7]} 16. Qxd5 {[%clk 0:04:25.6]} 16... Qc6 {[%clk
0:04:34.5]} 17. c4 {[%clk 0:04:20.7]} 17... Qxd5 {[%clk 0:04:32.5]} 18. cxd5
{[%clk 0:04:20.6]} 18... Rc8 {[%clk 0:04:30]} 19. Rac1 {[%clk 0:04:19]} 19...
Rxc1 {[%clk 0:04:27.6]} 20. Rxc1 {[%clk 0:04:17.4]} 20... Kd7 {[%clk 0:04:27]}
21. Nd2 {[%clk 0:04:11.1]} 21... b5 {[%clk 0:04:24.9]} 22. b3 {[%clk 0:04:05.5]}
22... Be7 {[%clk 0:04:24]} 23. a4 {[%clk 0:04:04.1]} 23... Bg5 {[%clk
0:04:22.4]} 24. Rc2 {[%clk 0:04:01.4]} 24... Bxd2 {[%clk 0:04:20.8]} 25. Rxd2
{[%clk 0:04:01.3]} 25... Rc8 {[%clk 0:04:19.6]} 26. Kf2 {[%clk 0:03:59.8]} 26...
Rc3 {[%clk 0:04:17.7]} 27. axb5 {[%clk 0:03:57.4]} 27... axb5 {[%clk 0:04:16]}
28. Rb2 {[%clk 0:03:54]} 28... b4 {[%clk 0:04:14.2]} 29. g3 {[%clk 0:03:51.7]}
29... g6 {[%clk 0:04:12.2]} 30. f6 {[%clk 0:03:48.8]} 30... g5 {[%clk
0:04:09.9]} 31. g4 {[%clk 0:03:47.4]} 31... Rh3 {[%clk 0:04:07]} 32. Kg2 {[%clk
0:03:45.6]} 32... Re3 {[%clk 0:04:05.2]} 33. Ra2 {[%clk 0:03:35.9]} 33... Rxe4
{[%clk 0:03:46.1]} 34. Ra7+ {[%clk 0:03:33.7]} 34... Kd8 {[%clk 0:03:42.4]} 35.
Rxf7 {[%clk 0:03:31.3]} 35... Rf4 {[%clk 0:03:41.3]} 36. Rf8+ {[%clk 0:03:30.5]}
36... Kd7 {[%clk 0:03:40.1]} 37. Rf7+ {[%clk 0:03:29.6]} 37... Ke8 {[%clk
0:03:39.1]} 38. Ra7 {[%clk 0:03:23.6]} 38... Rxf6 {[%clk 0:03:36.8]} 39. Ra8+
{[%clk 0:03:23.5]} 39... Kf7 {[%clk 0:03:34.7]} 40. Ra7+ {[%clk 0:03:23.4]}
40... Kg6 {[%clk 0:03:33.2]} 41. Ra4 {[%clk 0:03:21]} 41... Rf4 {[%clk
0:03:31.9]} 42. Ra6 {[%clk 0:03:20]} 42... Rxg4+ {[%clk 0:03:30.7]} 43. Kh3
{[%clk 0:03:19.3]} 43... Rd4 {[%clk 0:03:29.1]} 44. Rxd6+ {[%clk 0:03:17.7]}
44... Kh5 {[%clk 0:03:28.2]} 45. Rd8 {[%clk 0:03:13.8]} 45... Rd3+ {[%clk
0:03:25.3]} 46. Kg2 {[%clk 0:03:12.4]} 46... Rxb3 {[%clk 0:03:24.3]} 47. d6
{[%clk 0:03:12]} 47... Rd3 {[%clk 0:03:23.2]} 48. d7 {[%clk 0:03:11.9]} 48... b3
{[%clk 0:03:21.5]} 49. Rb8 {[%clk 0:03:10.7]} 49... Rxd7 {[%clk 0:03:20]} 50.
Rxb3 {[%clk 0:03:10.5]} 50... e4 {[%clk 0:03:16.9]} 51. Re3 {[%clk 0:03:09.5]}
51... Rd2+ {[%clk 0:03:15.2]} 52. Kg3 {[%clk 0:03:08.2]} 52... Rd3 {[%clk
0:03:14.3]} 53. Rxd3 {[%clk 0:03:05.7]} 53... exd3 {[%clk 0:03:13.3]} 54. Kf2
{[%clk 0:03:05.1]} 54... Kg4 {[%clk 0:03:12.4]} 55. Ke3 {[%clk 0:03:04.4]} 55...
Kh3 {[%clk 0:03:11.7]} 56. Kxd3 {[%clk 0:03:04]} 56... Kxh2 {[%clk 0:03:07.8]}
57. Ke2 {[%clk 0:03:03.9]} 57... g4 {[%clk 0:03:06.7]} 0-1

[Event "Live Chess"]
[Site "Chess.com"]
[Date "2023.05.21"]
[Round "-"]
[White "Jo1ts"]
[Black "Shepherds_Pie"]
[Result "0-1"]
[WhiteElo "830"]
[BlackElo "1920"]
[TimeControl "300"]
[EndTime "22:19:33 PDT"]
[Termination "Shepherds_Pie won by checkmate"]

1. d4 {[%clk 0:04:55.4]} 1... d5 {[%clk 0:04:58.7]} 2. Bf4 {[%clk 0:04:52.2]}
2... c5 {[%clk 0:04:57.4]} 3. c3 {[%clk 0:04:49.4]} 3... Nf6 {[%clk 0:04:55.6]}
4. Nf3 {[%clk 0:04:43.7]} 4... Bf5 {[%clk 0:04:53]} 5. e3 {[%clk 0:04:38.9]}
5... e6 {[%clk 0:04:51.6]} 6. Bd3 {[%clk 0:04:37.7]} 6... Bxd3 {[%clk
0:04:49.5]} 7. Qxd3 {[%clk 0:04:35.1]} 7... Qb6 {[%clk 0:04:48.3]} 8. Qc2 {[%clk
0:04:28.7]} 8... Nc6 {[%clk 0:04:44.8]} 9. O-O {[%clk 0:04:20]} 9... Be7 {[%clk
0:04:43.1]} 10. Ne5 {[%clk 0:04:12.1]} 10... O-O {[%clk 0:04:39.7]} 11. a3
{[%clk 0:04:05.7]} 11... c4 {[%clk 0:04:36.4]} 12. Nd2 {[%clk 0:03:58.1]} 12...
a5 {[%clk 0:04:33.5]} 13. b4 {[%clk 0:03:51.9]} 13... axb4 {[%clk 0:04:28.8]}
14. axb4 {[%clk 0:03:48.7]} 14... Nh5 {[%clk 0:04:26]} 15. Ndf3 {[%clk
0:03:38.7]} 15... Nxf4 {[%clk 0:04:24.3]} 16. exf4 {[%clk 0:03:38.1]} 16... Qc7
{[%clk 0:04:17.7]} 17. g3 {[%clk 0:03:34]} 17... b5 {[%clk 0:04:16]} 18. Ng5
{[%clk 0:03:17.5]} 18... Bxg5 {[%clk 0:04:08.4]} 19. fxg5 {[%clk 0:03:17.4]}
19... Nxe5 {[%clk 0:04:04.6]} 20. dxe5 {[%clk 0:03:13.8]} 20... Qxe5 {[%clk
0:04:03.2]} 21. f4 {[%clk 0:03:10.2]} 21... Qe3+ {[%clk 0:03:59.4]} 22. Kh1
{[%clk 0:03:05.7]} 22... d4 {[%clk 0:03:50]} 23. cxd4 {[%clk 0:02:59.4]} 23...
Qxd4 {[%clk 0:03:48.3]} 24. Rxa8 {[%clk 0:02:52.1]} 24... Rxa8 {[%clk
0:03:46.5]} 25. Rd1 {[%clk 0:02:51.2]} 25... Ra1 {[%clk 0:03:38.6]} 26. Rxa1
{[%clk 0:02:47.1]} 26... Qxa1+ {[%clk 0:03:36.9]} 27. Kg2 {[%clk 0:02:44]} 27...
Qd4 {[%clk 0:03:34.5]} 28. Qa2 {[%clk 0:02:31.6]} 28... Qd5+ {[%clk 0:03:30.4]}
29. Kh3 {[%clk 0:02:25.1]} 29... g6 {[%clk 0:03:21.1]} 30. Kg4 {[%clk
0:02:16.9]} 30... c3 {[%clk 0:03:14.4]} 31. Qa5 {[%clk 0:02:07.8]} 31... c2
{[%clk 0:03:09.8]} 32. Qa3 {[%clk 0:02:00.8]} 32... Qd1+ {[%clk 0:03:00.2]} 33.
Kh4 {[%clk 0:01:51.1]} 33... c1=Q {[%clk 0:02:54.4]} 34. Qa8+ {[%clk 0:01:50.5]}
34... Kg7 {[%clk 0:02:53.1]} 35. Qb8 {[%clk 0:01:38.6]} 35... Qh5# {[%clk
0:02:49.6]} 0-1